Workbook

Sheet 01.10.2020
D1: Приложение №7
D2: к Пояснительной записке к Отчету об исполнении бюджета ЗАТО г. Радужный Владимирской области за 2020 год
A4: Сведения о фактической численности муниципальных служащих, работников казенных и бюджетных учреждений и расходы на их денежное содержание по состоянию за 2020 год
A6: №п/п | B6: Код раздела (подраздела) | C6: Наименование раздела (подраздела) расходов | D6: Фактическая численность на 01.01.2021 года (чел.) | E6: Годовой фонд оплаты труда с начислениями (тыс.руб.) | F6: Исполнено за отчетный период (тыс.руб.)
A7: 1 | B7: 2 | C7: 3 | D7: 4 | E7: 5 | F7: 6
A8: 1 | B8: 0100 | C8: Общегосударственные вопросы | D8: =D10+D11+D12+D13+D14 -> 203.5 | E8: =E10+E11+E12+E13+E14 -> 68005.54 | F8: =F10+F11+F12+F13+F14 -> 67953.12
C9: в том числе:
A10: 1.1 | B10: 0102 | C10: Функционирование высшего должностного лица субъекта Российской Федерации и муниципального образования | D10: 1 | E10: 364.05 | F10: 364.05
A11: 1.2 | B11: 0103 | C11: Функционирование законодательных (представительных) органов государственной власти и представительных органов муниципальных образований | D11: 2 | E11: 1254.48 | F11: 1254.48
A12: 1.3 | B12: 0104 | C12: Функционирование Правительства Российской Федерации, высших исполнительных органов государственной власти субъектов Российской Федерации, местных администраций | D12: 17 | E12: 10458.27 | F12: 10458.27
A13: 1.4 | B13: 0106 | C13: Обеспечение деятельности финансовых, налоговых и таможенных органов и органов финансового (финансово-бюджетного) надзора | D13: 10 | E13: 5221.69 | F13: 5212.74
A14: 1.5 | B14: 0113 | C14: Другие общегосударственные вопросы | D14: 173.5 | E14: 50707.05 | F14: 50663.58
A15: 2 | B15: 0300 | C15: Национальная безопасность и правоохранительная деятельность, всего, в том числе | D15: =D17 -> 5 | E15: =E17 -> 2203.77 | F15: =F17 -> 2203.77
C16: в том числе:
A17: 2.1 | B17: 0309 | C17: Защита населения и территории от чрезвычайных ситуаций природного и техногенного характера, гражданская оборона | D17: 5 | E17: 2203.77 | F17: 2203.77
A18: 3. | B18: 0400 | C18: Национальная экономика | D18: =D20 -> 37 | E18: =E20 -> 16814.25 | F18: =F20 -> 16803.88
C19: в том числе:
A20: 3.1 | B20: 0409 | C20: Дорожное хозяйство (дорожные фонды) | D20: 37 | E20: 16814.25 | F20: 16803.88
A21: 4. | B21: 0500 | C21: Жилищно-коммунальное хозяйство | D21: =D23+D24 -> 61 | E21: =E23+E24 -> 25563.06 | F21: 25471.59
C22: в том числе:
A23: 4.1 | B23: 0503 | C23: Благоустройство | D23: 5 | E23: 2545.45 | F23: 2544.93
A24: 4.2 | B24: 0505 | C24: Другие вопросы в области жилищно-коммунального хозяйства | D24: 56 | E24: 23017.61 | F24: 22926.66
A25: 5 | B25: 0700 | C25: Образование | D25: =D27+D28+D29+D30 -> 543 | E25: =E27+E28+E29+E30 -> 219350.1 | F25: =F27+F28+F29+F30 -> 213802.83
C26: в том числе:
A27: 5.1 | B27: 0701 | C27: Дошкольное образование | D27: 223 | E27: 84685.93 | F27: 81670.63
A28: 5.2 | B28: 0702 | C28: Общее образование | D28: 195 | E28: 89911.7 | F28: 87638.19
A29: 5.3 | B29: 0703 | C29: Дополнительное образование детей | D29: 99 | E29: 34553.88 | F29: 34338.22
A30: 5.4. | B30: 0709 | C30: Другие вопросы в области образования | D30: 26 | E30: 10198.59 | F30: 10155.79
A31: 6. | B31: 0800 | C31: Культура, кинематография | D31: =D33+D34 -> 88 | E31: =E33+E34 -> 32139 | F31: =F33+F34 -> 32139
C32: в том числе:
A33: 6.1 | B33: 0801 | C33: Культура | D33: 48 | E33: 20821.87 | F33: 20821.87
A34: 6.2 | B34: 0804 | C34: Другие вопросы в области культуры, кинематографии | D34: 40 | E34: 11317.13 | F34: 11317.13
A35: 7. | B35: 1000 | C35: Социальная политика | D35: =D37 -> 2 | E35: =E37 -> 978.98 | F35: =F37 -> 978.98
C36: в том числе:
A37: 7.1 | B37: 1006 | C37: Другие вопросы в области социальной политики | D37: 2 | E37: 978.98 | F37: 978.98
A38: 8. | B38: 1100 | C38: Физическая культура и спорт | D38: =D40 -> 3 | E38: =E40 -> 910.58 | F38: =F40 -> 910.58
C39: в том числе:
A40: 8.1 | B40: 1103 | C40: Спорт высших достижений | D40: 3 | E40: 910.58 | F40: 910.58
C41: Всего: | D41: =D8+D15+D18+D21+D25+D31+D35+D38 -> 942.5 | E41: =E8+E15+E18+E21+E25+E31+E35+E38 -> 365965.28 | F41: =F8+F15+F18+F21+F25+F31+F35+F38 -> 360263.75
A43: Заместитель главы администрации города по финансам и экономике, начальник финансового управления | E43: О.М. Горшкова
A46: В.Н. Милованова, 3-67-17
